bitfinex/quotes_ETHUSD_20260313
["timestamp","ask_amount","ask_price","bid_price","bid_amount"]
[1773415792223,6.07130408,2153.5,2152.7,2.07115084]
[1773415792424,6.05692118,2153.5,2152.7,2.07115084]
[1773415792621,6.25756174,2153.3,2152.8,1.16127833]
[1773415792822,6.21431936,2153.3,2152.8,1.16127833]
[1773415793026,6.15674564,2153.3,2152.8,1.16127833]
[1773415793226,6.12915786,2153.3,2152.8,1.16127833]
[1773415793528,6.08552383,2153.3,2152.8,1.16127833]
[1773415793733,6.04209647,2153.3,2152.8,1.16127833]
[1773415793930,6.00043786,2153.3,2152.7,2.07115084]
[1773415794133,5.97203611,2153.3,2152.7,2.07115084]
[1773415794745,5.97203611,2153.3,2152.6,1.16244632]
[1773415794746,6.2866071,2153.1,2152.6,0.0011]
[1773415796650,1.16117045,2153.0,2152.6,0.0011]
[1773415797147,7.44777755,2153.0,2152.6,0.0011]
[1773415798043,7.44777755,2153.0,2152.6,2.42971865]
[1773415798450,1.16117045,2153.0,2152.6,2.42971865]
[1773415798620,10.93128893,2153.1,2152.6,2.4497732]
[1773415799119,6.2866071,2153.0,2152.6,2.42971865]
[1773415799339,6.2866071,2153.2,2152.7,2.42861865]
[1773415799948,7.44761578,2153.3,2152.7,2.42861865]
[1773415800121,7.43326508,2153.3,2152.7,2.42861865]
[1773415800448,6.2866071,2153.1,2152.6,0.0011]
[1773415800617,6.2866071,2152.9,2152.6,0.0011]
[1773415800825,7.43359102,2153.5,2152.7,2.47105332]
[1773415801139,7.41925307,2153.5,2152.8,2.52866984]
[1773415801321,7.44749693,2153.6,2152.8,2.48539127]
[1773415802749,7.44749693,2153.6,2153.0,2.48539127]
[1773415802952,7.43297012,2153.6,2153.0,2.48539127]
[1773415803269,6.27207109,2153.9,2153.0,2.49992728]
[1773415803423,6.25732133,2153.9,2153.0,2.51467704]
[1773415805157,1.16073915,2153.8,2153.1,1.16111652]
[1773415805365,1.13167211,2153.8,2153.2,2.51467704]
[1773415805564,7.40334842,2153.8,2152.7,2.51467704]
[1773415805873,6.2866071,2153.6,2152.8,2.55795561]
[1773415806044,6.27289167,2153.6,2152.8,2.55795561]
[1773415806245,6.22979441,2153.6,2152.6,3.71946038]
[1773415806448,6.20064193,2153.6,2152.6,3.71946038]
[1773415806658,6.18595486,2153.6,2152.6,0.0011]
[1773415806828,6.2866071,2153.4,2152.6,0.0011]
[1773415807031,6.25771179,2153.4,2152.6,0.0011]
[1773415807269,6.27246514,2153.0,2152.6,0.0011]
[1773415807430,6.27246514,2153.0,2152.4,0.0011]
[1773415807431,6.23043415,2153.0,2152.4,0.0011]
[1773415807835,6.18721206,2153.0,2152.4,0.0011]
[1773415808045,6.14485787,2153.0,2152.4,0.0011]
[1773415808239,6.10140036,2153.0,2152.4,0.0011]
[1773415808460,6.0587896,2153.0,2152.4,0.0011]
[1773415808671,6.0587896,2153.0,2152.4,2.90234679]
[1773415808957,5.98655858,2153.0,2152.4,0.0011]
[1773415809163,5.94468336,2153.0,2152.4,0.0011]
[1773415809324,6.25832991,2152.8,2152.4,0.0011]
[1773415809531,6.22914359,2152.8,2152.4,0.0011]
[1773415809761,6.20008652,2152.8,2152.4,0.0011]
[1773415809965,6.1723824,2152.8,2152.4,0.0011]
[1773415810136,6.12854882,2152.8,2152.4,0.0011]
[1773415810341,6.0992859,2152.8,2152.4,0.0011]
[1773415810680,6.0557913,2152.8,2152.4,0.0011]
[1773415810838,6.02725388,2152.8,2152.4,0.0011]
[1773415811044,5.98438585,2152.8,2152.4,0.0011]
[1773415811261,7.43289725,2152.7,2152.4,0.0011]
[1773415811452,7.41998765,2152.8,2152.4,0.0011]
[1773415811768,7.39072864,2152.8,2152.4,0.0011]
[1773415811930,7.34804752,2152.8,2152.4,0.0011]
[1773415812138,7.30500109,2152.8,2152.4,0.0011]
[1773415812336,7.2624902,2152.8,2152.4,0.0011]
[1773415812577,7.21956046,2152.8,2152.4,0.0011]
[1773415812869,7.18981532,2152.8,2152.4,0.0011]
[1773415813040,6.2866071,2152.8,2152.4,0.0011]
[1773415813235,7.40449024,2152.8,2152.4,0.0011]
[1773415813436,7.36121273,2152.8,2152.4,0.0011]
[1773415813666,7.34647123,2152.8,2152.4,0.0011]
[1773415813869,7.31651814,2152.8,2152.4,0.0011]
[1773415814077,7.27324546,2152.8,2152.4,0.0011]
[1773415814250,7.23054615,2152.8,2152.4,0.0011]
[1773415814436,7.18748827,2152.8,2152.4,0.0011]
[1773415814638,7.15902913,2152.8,2152.4,0.0011]
[1773415814857,6.27274641,2153.6,2152.5,3.67748723]
[1773415815170,6.21463077,2153.6,2152.4,0.0011]
[1773415815338,6.47842215,2152.9,2152.4,0.0011]
[1773415815666,6.43570263,2152.9,2152.4,0.0011]
[1773415815870,6.42114292,2152.9,2152.4,0.0011]
[1773415816067,6.42127703,2152.7,2152.4,0.0011]
[1773415816270,6.37847599,2152.7,2152.4,0.0011]
[1773415816575,6.32030505,2152.7,2152.4,0.0011]
[1773415816954,6.2780539,2152.7,2152.4,0.0011]
[1773415817163,6.23502484,2152.7,2152.4,0.0011]
[1773415817347,7.46693467,2152.6,2152.4,0.0011]
[1773415817567,7.42400961,2152.6,2152.4,0.0011]
[1773415817777,7.48153869,2152.9,2152.4,0.0011]
[1773415817937,10.93617423,2153.1,2152.4,0.37528324]
[1773415818283,7.38137298,2153.1,2152.5,0.4171181]
[1773415818567,6.2718737,2152.7,2151.5,0.51759929]
[1773415818745,6.2866071,2152.3,2151.3,0.81030845]
[1773415818948,6.24347042,2152.3,2151.3,0.27823322]
[1773415819165,6.21436098,2152.3,2151.3,0.27823322]
[1773415819367,6.2866071,2152.1,2151.3,0.27823322]
[1773415819573,6.25864655,2152.0,2151.3,0.27823322]
[1773415819760,6.2866071,2151.9,2151.3,0.27823322]
[1773415819965,6.25738418,2151.9,2151.3,0.27823322]
[1773415820282,6.25738418,2151.9,2151.2,8.49254301]
[1773415820283,6.24304785,2151.9,2151.2,8.49254301]
[1773415821346,6.47556612,2151.7,2151.2,8.49254301]
[1773415822765,6.43278662,2151.7,2151.2,8.49254301]
[1773415822969,6.41904506,2151.7,2151.2,8.49254301]
[1773415823167,6.47556612,2151.6,2151.2,1e-08]
[1773415823876,1.16198001,2151.5,2151.2,1e-08]
[1773415824267,7.63753068,2151.6,2151.2,1e-08]
[1773415825902,6.47556612,2152.0,2151.2,0.81829549]
[1773415826175,1.16168161,2152.1,2151.4,0.81829548]
[1773415826388,6.47556612,2151.9,2151.2,1e-08]
[1773415826576,6.46157673,2151.9,2151.2,1e-08]
[1773415827085,6.47556612,2151.7,2151.2,1e-08]
[1773415827289,6.44681865,2151.7,2151.2,1e-08]
[1773415827579,6.38896658,2151.7,2151.2,1e-08]
[1773415827779,6.345643,2151.7,2151.2,1e-08]
[1773415827984,7.49319889,2151.7,2151.2,1.16214207]
[1773415828179,7.45087574,2151.7,2151.2,1e-08]
[1773415828484,6.47556612,2151.4,2149.8,4.888]
[1773415828775,6.43246076,2151.2,2150.5,0.029557]
[1773415828978,6.41824829,2151.2,2150.5,0.029557]
[1773415829173,6.37538016,2151.2,2151.1,0.0011]
[1773415829375,8.20070734,2151.2,2150.9,0.0011]
[1773415829578,6.43205992,2151.0,2149.9,1.16283625]
[1773415829788,3.41687384,2151.2,2149.9,1.16283625]
[1773415829789,6.43345436,2150.8,2149.9,1.16283625]
[1773415829995,7.59584088,2150.8,2149.9,1.16283625]
[1773415830300,7.52342305,2150.8,2149.7,1.49927241]
[1773415830451,6.47556612,2150.7,2149.5,1.16302835]
[1773415830652,6.46055039,2150.4,2149.5,1.16302835]
[1773415830882,6.44675912,2150.3,2149.5,2.76498817]
[1773415831085,6.44675912,2150.3,2149.6,1.6163077]
[1773415831297,1.14773493,2150.8,2149.5,1.16302835]
[1773415831298,6.44769793,2150.7,2149.5,1.16302835]
[1773415831477,6.40394665,2150.7,2149.6,1.71631846]
[1773415831667,6.36082012,2150.7,2149.6,1.75944499]
[1773415831864,1.868,2150.9,2150.0,1.78787913]
[1773415832071,1.85352063,2150.9,2150.0,1.78787913]
[1773415832377,6.44663627,2151.2,2150.0,1.81680898]
[1773415832597,6.44663627,2151.2,2149.8,6.20137913]
[1773415832598,6.46110967,2150.8,2149.8,1.83134885]
[1773415832755,6.46164218,2150.6,2149.4,1.16306256]
[1773415833087,6.46065395,2150.1,2148.9,1.84844299]
[1773415833260,6.4616955,2149.8,2148.9,1.84844299]
[1773415833453,6.41734928,2149.8,2149.0,0.04653327]
[1773415833651,6.37469651,2149.8,2149.0,0.04653327]
[1773415833887,6.33137105,2149.8,2149.0,0.04653327]
[1773415834075,6.47556612,2149.6,2148.9,0.68506326]
[1773415834273,6.43212234,2149.6,2148.9,1.84844487]
[1773415834587,6.35917874,2149.6,2148.9,1.8484384]
[1773415834785,6.31648949,2149.6,2148.9,1.79987333]
[1773415835090,10.37450744,2149.9,2149.0,0.04653327]
[1773415835308,10.34519999,2149.9,2149.0,0.04653327]
[1773415835598,6.43202124,2149.8,2148.9,1.30035825]
[1773415835894,6.43100015,2149.6,2148.9,0.13698826]
[1773415836110,6.43100015,2149.6,2148.3,7.06399395]
[1773415836111,6.47556612,2149.4,2148.1,2.62222722]
[1773415836259,6.43200318,2149.4,2148.3,2.66579016]
[1773415836456,6.38698601,2149.4,2148.4,2.6840119]
[1773415836672,6.34458881,2149.4,2148.4,2.6840119]
[1773415836887,7.6235222,2149.8,2148.5,2.79769174]
[1773415837059,6.46111313,2149.6,2148.6,1.549]
[1773415837272,6.41936074,2149.6,2148.6,1.549]
[1773415837457,6.37637897,2149.6,2148.7,0.01820778]
[1773415837663,6.46069009,2149.4,2148.6,0.01820635]
[1773415837862,6.40307327,2149.4,2148.7,0.01821234]
[1773415838060,6.47556612,2149.7,2148.6,2.98350186]
[1773415838258,2.69237977,2149.9,2148.7,2.98669516]
[1773415838459,6.47556612,2150.0,2148.7,2.98669516]
[1773415838702,6.47556612,2150.0,2148.6,1.54887384]
[1773415838703,9.07696208,2150.3,2149.0,3.00151984]
[1773415838983,0.05812601,2150.5,2149.4,3.01644784]
[1773415839162,6.51869781,2150.5,2149.4,3.01644784]
[1773415839363,0.04313169,2150.5,2149.6,3.03141014]
[1773415839661,6.46149785,2151.1,2149.8,4.60818665]
[1773415839892,0.0581125,2151.0,2149.9,3.05931281]
[1773415840079,7.63787027,2150.9,2150.0,1.16279069]
[1773415840264,0.0581179,2150.8,2150.1,0.04277615]
[1773415840462,6.53368402,2150.8,2149.9,1.16280329]
[1773415841014,6.53368402,2150.8,2150.0,0.04278156]
[1773415841166,0.0581179,2150.8,2150.0,3.11684746]
[1773415841504,0.04420611,2151.0,2150.0,3.0740659]
[1773415841686,1.87,2151.5,2149.9,1.16280329]
[1773415841687,6.47556612,2152.0,2150.4,3.04466182]
[1773415841900,6.47556612,2151.8,2150.3,3.04466182]
[1773415842222,6.49093916,2151.7,2150.5,3.04466182]
[1773415842357,0.01537304,2151.8,2150.5,3.04466182]
[1773415842561,1.17716893,2151.9,2150.7,3.04466182]
[1773415842769,0.01537304,2151.9,2150.7,3.04466182]
[1773415842995,1.16177227,2151.9,2150.7,3.04466182]
[1773415843187,1.1771068,2152.0,2150.7,3.04466182]
[1773415843392,7.63724515,2152.1,2151.0,3.04466182]
[1773415843561,7.65261819,2152.1,2151.0,3.04466182]
[1773415843767,7.65261819,2152.1,2151.1,1.544]
[1773415844092,7.65261819,2152.1,2151.1,1.1621564]
[1773415844869,6.47556612,2151.9,2150.7,1.16240593]
[1773415845170,9.72862084,2152.0,2149.9,0.23488089]
[1773415845171,6.47556612,2151.2,2149.9,3.04466182]
[1773415845569,6.43200479,2151.2,2150.0,1.59051162]
[1773415845766,1.869,2151.8,2149.8,1.538]
[1773415845767,6.30352222,2151.0,2149.8,1.538]
[1773415846092,7.47955956,2150.9,2149.9,1.20935857]
[1773415846465,7.47955956,2150.9,2149.4,4.65233411]
[1773415846466,6.31725541,2150.5,2149.4,4.65233411]
[1773415846672,6.31725541,2150.3,2149.5,0.02838]
[1773415846889,6.28788611,2150.3,2149.7,0.02838]
[1773415847087,6.28788611,2150.3,2149.4,0.02838]
[1773415847276,6.28788611,2150.3,2149.5,0.04652244]
[1773415847487,6.28788611,2150.3,2149.6,0.02838]
[1773415847679,6.28788611,2150.3,2149.5,0.02838]
[1773415848078,6.28788611,2150.3,2148.9,1.16334339]
[1773415848079,6.31725541,2150.1,2148.9,1.16334339]
[1773415848287,6.31725541,2150.1,2149.1,0.02838]
[1773415848691,6.31725541,2149.7,2148.9,0.02838]
[1773415849023,6.31725541,2149.5,2148.8,1.2110742]
[1773415849218,6.31725541,2149.5,2148.8,0.0760176]
[1773415849520,6.31725541,2149.5,2148.8,0.0011]
[1773415849896,6.31725541,2149.5,2148.8,1.16452955]
[1773415850090,6.31725541,2149.5,2149.0,1.16333178]
[1773415850292,1.16304398,2149.6,2149.0,1.16333178]
[1773415850293,9.0610955,2149.9,2149.0,1.16333178]
[1773415850497,10.22397862,2149.9,2149.1,0.0465311]
[1773415850705,6.31725541,2150.3,2149.1,0.0465311]
[1773415850896,7.4798928,2150.3,2149.2,1.529]
[1773415851226,6.2452106,2150.3,2149.7,0.02838]
[1773415851429,6.23129279,2150.3,2149.7,0.02838]
[1773415851722,6.21683213,2150.3,2149.7,0.02838]
[1773415851917,4.1547,2150.7,2149.2,1.529]
[1773415852249,6.1508011,2150.6,2149.7,0.02838]
[1773415852924,7.31324014,2150.7,2149.9,0.02838]
[1773415854241,7.31323891,2150.7,2149.9,1.16279089]
[1773415854603,6.1508011,2150.7,2149.9,1.16279089]
[1773415854804,0.001,2150.4,2149.9,1.16279089]
[1773415855437,6.1518011,2150.4,2149.4,4.65235293]
[1773415856132,7.31342957,2150.3,2149.3,0.0011]
[1773415856339,7.31342957,2150.3,2149.3,0.04762677]
[1773415856535,6.1508011,2150.3,2149.3,0.04762677]
[1773415856735,6.1508011,2150.3,2149.3,0.0011]
[1773415857716,0.001,2150.4,2149.5,4.82471221]
[1773415858035,0.001,2150.4,2149.5,3.27583837]
[1773415858335,6.1508011,2150.9,2149.7,3.27583837]
[1773415858541,4.64874703,2151.2,2149.7,3.27583837]
[1773415858542,7.31290784,2151.3,2149.7,3.27583837]
[1773415859310,7.31290784,2151.3,2149.8,1.534]
[1773415859712,7.31290784,2151.3,2149.8,4.80883837]
[1773415859943,7.31290784,2151.3,2149.9,3.27483837]
[1773415860321,6.1508011,2151.1,2150.1,1.16273661]
[1773415860828,1.16203402,2151.4,2150.1,4.43757498]
[1773415861030,7.31281921,2151.5,2150.2,3.27483837]
[1773415861234,7.31281921,2151.5,2150.1,1.16273661]
[1773415861542,6.1508011,2151.5,2150.2,3.27483837]
[1773415861915,1.16191332,2151.7,2150.2,3.27483837]
[1773415862242,6.1508011,2151.6,2150.3,1.534]
[1773415862417,6.1508011,2151.4,2150.4,1.1625744]
[1773415862739,6.1508011,2151.8,2150.5,3.27483837]
[1773415862911,6.1508011,2151.8,2150.7,3.27483837]
[1773415863109,0.30421365,2151.9,2150.8,3.27483837]
[1773415863554,2.75,2152.6,2150.8,3.27483837]
[1773415863555,6.1508011,2152.6,2151.4,2.97062472]
[1773415863748,1.16234237,2152.7,2151.5,1.534]
[1773415863959,0.001,2152.7,2151.5,4.50462472]
[1773415864120,1.16233383,2152.7,2151.5,4.50462472]
[1773415864321,0.001,2152.7,2151.6,1.161926]
[1773415865448,0.001,2152.7,2151.7,2.97062472]
[1773415865646,6.1518011,2152.7,2151.6,1.161926]
[1773415865829,0.001,2152.7,2151.6,4.13255072]
[1773415866230,0.001,2152.7,2151.7,2.97062472]
[1773415866436,0.001,2152.7,2151.8,4.13244273]
[1773415866945,0.001,2152.4,2151.8,4.13244273]
[1773415867279,0.001,2152.4,2151.9,2.97062472]
[1773415867453,0.001,2152.4,2151.8,2.69581801]
[1773415868325,0.001,2152.7,2151.9,2.97062472]
[1773415868525,8.87848146,2153.2,2152.0,4.13133475]
[1773415868526,6.1508011,2153.2,2152.0,4.13133475]
[1773415868749,0.001,2153.7,2152.4,2.96962472]
[1773415869047,0.001,2153.7,2152.6,2.96962472]
[1773415869348,7.31260024,2153.7,2152.2,2.96962472]
[1773415869517,6.1508011,2153.5,2152.0,1.16171003]
[1773415869718,6.1508011,2153.5,2152.1,1.534]
[1773415870523,6.1508011,2153.5,2152.2,1.16160208]
[1773415870717,6.1508011,2153.5,2152.3,3.59462472]
[1773415870919,1.16179966,2153.7,2152.3,3.59462472]
[1773415871145,7.31260076,2153.7,2152.4,1.534]
[1773415871348,6.1518011,2153.7,2152.4,1.534]
[1773415871651,7.31259774,2153.7,2152.4,5.12862472]
[1773415871847,6.1518011,2153.7,2152.4,5.12862472]
[1773415872041,6.1518011,2153.7,2152.6,3.59462472]
[1773415872042,0.001,2153.7,2152.6,3.59462472]
[1773415872343,7.31263979,2153.7,2152.4,1.534]
[1773415872534,7.31263979,2153.7,2152.5,1.16144018]
[1773415872739,7.31260403,2153.7,2152.5,1.16144018]
[1773415872945,30.0,2153.4,2151.0,3.59462472]
[1773415873124,6.1508011,2152.6,2151.1,0.04648784]
[1773415873328,6.1508011,2152.4,2151.0,1.16225011]
[1773415873653,6.1508011,2152.2,2151.0,1.16225011]
[1773415874641,6.1508011,2152.2,2150.9,5.03333906]
[1773415874642,6.1508011,2152.0,2150.9,1.54663797]
[1773415874849,6.1508011,2152.0,2150.9,0.3843386]
[1773415875226,6.1508011,2151.8,2150.9,0.3843386]
[1773415876459,6.1508011,2151.8,2151.0,0.04649]
[1773415876762,1.161872,2151.7,2151.0,0.04649]
[1773415877333,7.3126731,2151.7,2150.9,0.3843386]
[1773415877739,7.3126731,2151.7,2150.9,1.54662926]
[1773415878229,7.31240318,2152.2,2151.0,0.04649]
[1773415878639,7.31240318,2152.2,2151.0,1.20871297]
[1773415878966,7.31240318,2152.2,2151.0,1.16222297]
[1773415879426,7.31240318,2152.2,2151.1,0.0011]
[1773415880049,7.31240318,2152.2,2151.1,0.04758784]
[1773415880756,7.31240318,2152.2,2151.1,0.0011]
[1773415881059,6.1095349,2151.8,2151.1,0.0011]
[1773415882661,6.1095349,2151.6,2151.1,0.0011]
[1773415883237,6.1095349,2151.6,2150.9,0.3854386]
[1773415883448,6.1095349,2151.4,2150.9,0.3854386]
[1773415884169,6.1095349,2151.4,2150.9,1e-08]
[1773415884545,6.1095349,2151.3,2150.9,1e-08]
[1773415884762,6.1095349,2151.3,2150.6,0.0011]
[1773415884763,6.1095349,2151.1,2150.6,0.0011]
[1773415886744,1.16225011,2151.0,2150.6,0.0011]
[1773415887348,7.27177222,2151.1,2150.6,0.0011]
[1773415888474,7.27156218,2151.5,2150.6,0.0011]
[1773415891172,6.1095349,2151.1,2150.1,1.16271633]
[1773415891474,7.27189309,2150.8,2150.2,0.0465073]
[1773415891675,6.1095349,2150.8,2149.8,0.04651595]
[1773415891991,1.16219992,2151.1,2149.9,3.59682472]
[1773415892290,7.27166619,2151.3,2150.0,3.64333634]
[1773415893179,7.2714609,2151.6,2150.2,3.59682472]
[1773415893355,6.1095349,2151.5,2150.8,0.0011]
[1773415893753,6.1095349,2151.3,2150.8,0.0011]
[1773415894482,6.1095349,2151.1,2150.8,0.0011]
[1773415894654,9.13056892,2151.4,2150.8,0.0011]
[1773415895279,6.1095349,2151.4,2150.8,0.0011]
[1773415895494,7.27146028,2151.7,2150.8,0.0011]
[1773415896283,6.1095349,2151.5,2150.8,0.0011]
[1773415896583,4.64740693,2151.8,2150.8,0.0011]
[1773415896584,7.27139099,2151.8,2150.8,0.04759432]
[1773415896971,6.1095349,2151.8,2150.8,0.04759432]
[1773415897361,6.1095349,2152.1,2150.8,4.26941904]
[1773415897563,1.16154811,2152.3,2151.0,4.22182472]
[1773415897766,7.27108301,2152.3,2151.1,1.16219608]
[1773415899080,6.1095349,2152.1,2151.1,1.16219608]
[1773415899882,7.27124254,2152.1,2151.1,1.16219608]
[1773415900072,7.27124254,2152.1,2150.9,1.16230415]
[1773415900581,6.1095349,2151.9,2150.9,1.16230415]
[1773415900793,6.1095349,2151.9,2151.0,0.04649]
[1773415901158,6.1095349,2151.9,2150.9,1.16230415]
[1773415901358,6.1095349,2151.8,2150.9,1.16230415]
[1773415902258,7.2714069,2151.7,2150.8,0.0011]
[1773415902659,6.1095349,2151.5,2150.8,0.0011]
[1773415904485,7.27139382,2151.8,2150.8,0.0011]
[1773415906899,6.44580413,2151.6,2150.8,0.0011]
[1773415907390,0.001,2151.6,2150.8,4.22292472]
[1773415908384,6.44580413,2151.6,2150.8,0.0011]
[1773415908895,6.44480413,2151.4,2150.8,0.0011]
[1773415909065,6.44480413,2151.2,2150.5,0.0011]
[1773415910892,7.60694714,2151.2,2150.5,0.0011]
[1773415911192,7.6069466,2151.2,2150.5,0.0011]
[1773415911490,7.60694911,2151.2,2150.5,0.0011]
[1773415912582,6.44480413,2151.2,2150.5,0.0011]
[1773415912977,1.16210832,2151.3,2150.5,0.0011]
[1773415913296,1.16210832,2151.3,2150.5,0.0476008]
[1773415914195,1.16210832,2151.3,2150.5,0.0011]
[1773415914496,7.64965913,2151.3,2150.5,0.0011]
[1773415919400,7.64965913,2151.3,2150.7,0.0011]
[1773415920173,7.64965913,2151.3,2150.5,0.0011]
[1773415920174,6.48755081,2151.1,2150.5,0.0011]
[1773415920386,6.48675081,2151.1,2150.5,0.0011]
[1773415920595,6.48675081,2151.1,2150.5,0.04760081]
[1773415921405,0.001,2151.4,2150.5,4.27242553]
[1773415921703,0.001,2151.4,2150.7,4.22482472]
[1773415921880,0.001,2151.4,2150.6,5.74482472]
[1773415922086,0.001,2151.4,2150.7,1.16241223]
[1773415922884,0.001,2151.4,2150.8,4.27131904]
[1773415923210,0.001,2151.4,2150.7,1.16241223]
[1773415923405,0.001,2151.4,2150.8,0.04649432]
[1773415923911,0.001,2151.4,2150.7,5.38723695]
[1773415924405,0.001,2151.4,2150.8,0.04649432]
[1773415924709,0.001,2151.4,2150.8,4.27131904]
[1773415925091,0.001,2151.6,2150.8,0.04649432]
[1773415925286,0.001,2151.6,2150.9,4.22382472]
[1773415925498,0.001,2151.6,2151.1,4.22382472]
[1773415925811,6.48855081,2151.6,2150.7,1.16241223]
[1773415926009,6.48855081,2151.6,2150.7,5.38623695]
[1773415926314,0.001,2151.6,2150.9,5.38612887]
[1773415926606,0.001,2151.6,2151.1,4.22382472]
[1773415927196,0.001,2151.6,2151.1,4.27031256]
[1773415927911,0.001,2151.6,2151.1,4.22382472]
[1773415928317,0.001,2151.6,2151.2,0.04648568]
[1773415928515,0.001,2151.6,2151.3,1.16208803]
[1773415929103,0.001,2151.6,2151.1,1.16214577]
[1773415929485,0.001,2151.6,2151.0,6.16882782]
[1773415929486,6.48855081,2151.6,2151.0,1.16221633]
[1773415930211,6.48855081,2151.6,2150.7,1.521]
[1773415930412,6.48855081,2151.6,2150.5,4.65105302]
[1773415930413,1.16198001,2151.5,2150.5,4.65105302]
[1773415930612,6.48755081,2151.4,2150.5,1.1635921]
[1773415930814,6.48755081,2151.4,2150.6,0.04649865]
[1773415931118,6.48755081,2151.4,2150.5,1.1635921]
[1773415931320,6.48755081,2151.4,2150.6,0.04649865]
[1773415932015,6.48755081,2151.4,2150.5,0.0011]
[1773415932203,6.48755081,2151.2,2150.5,0.0011]
[1773415932518,7.64974677,2151.2,2150.5,0.0011]
[1773415933214,7.64974677,2151.2,2150.7,0.0011]
[1773415933418,6.48855081,2151.2,2150.7,0.0011]
[1773415933712,6.48755081,2151.5,2150.7,0.0011]
[1773415933911,0.001,2151.6,2150.7,6.37192472]
[1773415934117,0.001,2151.6,2150.8,4.89531904]
[1773415934487,0.001,2151.6,2150.9,1.16230415]
[1773415934844,6.48755081,2152.1,2150.9,6.01112887]
[1773415935001,7.64921107,2152.1,2150.9,6.01112887]
[1773415935204,6.48755081,2152.1,2150.9,6.01112887]
[1773415935512,7.6492118,2152.1,2150.9,6.01112887]
[1773415935712,7.6492118,2152.1,2151.0,1.522]
[1773415936121,6.48755081,2152.1,2151.0,1.522]
[1773415936323,6.48755081,2152.1,2151.1,0.04648784]
[1773415936684,1.16253433,2152.4,2151.2,1.16214206]
[1773415936992,6.48755081,2152.2,2151.2,1.16214206]
[1773415937694,6.48755081,2152.0,2151.2,1.16214206]
[1773415938118,6.48755081,2152.0,2150.9,1.16230415]
[1773415938323,6.48755081,2152.0,2150.7,1.16350563]
[1773415938324,6.48755081,2151.6,2150.7,1.16350563]
[1773415938621,7.64949612,2151.6,2150.7,0.0011]
[1773415939334,9.14681111,2151.9,2150.7,4.84992472]
[1773415940002,9.14681111,2151.9,2150.8,6.37082472]
[1773415940316,9.14681111,2151.9,2150.9,4.84882472]
[1773415940615,6.48755081,2151.9,2151.0,1.16225011]
[1773415941295,6.03629678,2152.3,2151.3,4.84882472]
[1773415942723,6.03629678,2152.3,2151.4,1.16203402]
[1773415943385,6.03629678,2152.3,2151.4,2.68403402]
[1773415943615,0.001,2152.4,2151.4,7.53285874]
[1773415943992,6.03729678,2152.4,2151.4,7.53285874]
[1773415944390,6.03729678,2152.4,2151.6,4.84882472]
[1773415944391,0.001,2152.4,2151.6,4.84882472]
[1773415944790,0.001,2152.4,2151.7,1.161872]
[1773415945319,0.001,2152.1,2151.7,1.161872]
[1773415945521,6.03729678,2152.4,2151.7,1.161872]
[1773415946706,0.001,2152.4,2151.7,1.161872]
[1773415946930,0.001,2152.4,2151.6,4.64748803]
[1773415948205,0.001,2152.4,2151.6,9.49631275]
[1773415948404,0.001,2152.4,2151.7,4.84882472]
[1773415948622,0.001,2152.4,2151.8,0.04647272]
[1773415949022,0.001,2152.4,2151.9,1.16176402]
[1773415949426,6.03629678,2153.5,2152.2,6.39827636]
[1773415949737,6.03629678,2153.5,2151.9,1.16176402]
[1773415949738,0.001,2153.7,2152.6,4.84782472]
[1773415949913,0.001,2153.7,2152.8,6.39827636]
[1773415950114,0.001,2153.7,2152.9,6.37182472]
[1773415950634,6.03729678,2153.7,2153.0,1.525]
[1773415950934,6.03729678,2153.7,2153.1,1.16111652]
[1773415951909,6.03729678,2153.7,2153.0,1.16113818]
[1773415951910,7.19811177,2153.7,2153.0,1.16113818]
[1773415952104,7.19811177,2153.7,2152.6,1.16138623]
[1773415952909,7.19810714,2153.7,2152.6,1.16138623]
[1773415954352,7.19810714,2153.7,2152.7,1.527]
[1773415954742,6.03729678,2153.7,2152.7,6.37482472]
[1773415955030,7.19809017,2153.7,2152.7,2.6882908]
[1773415955236,7.19809017,2153.7,2152.7,1.1612908]
[1773415956047,7.19809313,2153.7,2152.7,1.20774409]
[1773415956256,6.03729678,2153.7,2152.7,1.1612908]
[1773415956429,6.03729678,2153.7,2152.7,1.20774409]
[1773415956626,7.1981006,2153.7,2152.7,1.1612908]
[1773415956951,6.03629678,2153.5,2152.7,1.1612908]
[1773415957127,6.03629678,2153.3,2152.2,1.16154811]
[1773415957440,6.03629678,2153.3,2152.3,1.529]
[1773415958030,6.03629678,2153.1,2152.1,1.16162027]
[1773415958423,6.03629678,2153.1,2152.5,0.0011]
[1773415958848,6.03629678,2153.1,2152.1,1.16162027]
[1773415959157,6.03629678,2153.1,2151.8,1.161777]
[1773415959158,6.03629678,2152.7,2151.8,1.161777]
[1773415959358,6.03629678,2152.7,2152.3,0.0011]
[1773415961227,6.03629678,2152.5,2152.3,0.0011]
[1773415964046,6.03629678,2152.8,2152.3,0.0011]
[1773415966873,6.03208001,2153.4,2152.5,5.57009474]
[1773415967172,6.03308001,2153.7,2152.6,5.61655018]
[1773415967355,0.001,2153.7,2152.6,5.61655018]
[1773415967527,0.001,2153.7,2152.8,5.57009474]
[1773415968547,7.19251695,2154.4,2153.2,7.12054638]
[1773415968755,7.19251695,2154.4,2153.3,1.533]
[1773415968956,9.94235978,2154.7,2153.5,5.57009474]
[1773415969471,9.94235978,2154.7,2153.6,1.16084695]
[1773415969671,8.78208001,2154.7,2153.6,6.73094169]
[1773415969977,7.49586333,2154.6,2153.6,1.16084695]
[1773415970275,7.49586333,2154.6,2153.3,0.11494354]
[1773415970436,7.49586333,2154.6,2153.4,1.16090528]
[1773415971947,0.001,2154.2,2153.4,1.16090528]
[1773415972149,0.001,2154.2,2153.4,6.73100002]
[1773415972984,0.001,2154.2,2153.5,1.534]
[1773415973546,6.74161804,2155.0,2153.8,1.55045164]
[1773415973547,7.09280626,2154.9,2153.8,1.55045164]
[1773415973849,7.09280626,2154.9,2153.7,1.16079305]
[1773415974040,5.93264612,2154.7,2153.7,1.16079305]
[1773415974857,5.93264612,2154.7,2153.7,6.72988779]
[1773415976168,10.57306256,2155.0,2153.7,6.72988779]
[1773415976985,5.93264612,2154.9,2153.7,6.72988779]
[1773415978170,7.0928466,2154.8,2153.7,6.72988779]
[1773415978972,7.0928466,2154.8,2153.7,1.16079305]
[1773415979270,5.93264612,2154.4,2153.6,1.534]
[1773415979458,5.93264612,2154.2,2153.4,0.25952769]
[1773415980244,5.93264612,2154.0,2153.4,1.42047193]
[1773415980448,5.93264612,2154.0,2153.5,0.04643603]
[1773415980845,5.93264612,2154.0,2153.4,1.42047193]
[1773415980846,5.93264612,2154.0,2153.4,0.2087937]